bitfinex/quotes_ETHUSD_20220309
["timestamp","ask_amount","ask_price","bid_price","bid_amount"]
[1646864114578,0.92121,2715.8,2715.7,5.33133271]
[1646864114777,0.950378,2715.8,2715.7,5.33133271]
[1646864115181,0.92115,2716.1,2715.7,9.20129075]
[1646864115378,4.221105,2716.9,2715.8,1.59975369]
[1646864115577,4.221105,2716.9,2715.9,5.11314081]
[1646864115578,4.191937,2716.9,2715.9,5.11314081]
[1646864115781,0.029168,2716.6,2716.0,1.61718427]
[1646864115977,0.029168,2716.6,2716.1,1.60481043]
[1646864116178,0.029168,2716.6,2716.2,0.00369724]
[1646864116380,0.92106,2716.4,2716.2,0.00369724]
[1646864117028,0.92106,2716.4,2716.2,1.52968577]
[1646864117221,0.92106,2716.4,2716.1,0.90082955]
[1646864117424,0.92106,2716.4,2716.2,1.53338663]
[1646864118226,0.92106,2716.4,2716.2,1.52968937]
[1646864118423,0.92106,2716.4,2716.2,1.53338663]
[1646864119428,0.92106,2716.4,2716.2,1.52968937]
[1646864119628,0.92106,2716.4,2716.2,1.53325185]
[1646864119928,0.92106,2716.4,2716.3,5.33120189]
[1646864120129,0.92106,2716.4,2716.3,5.33119873]
[1646864121179,0.950228,2716.4,2716.3,5.33119873]
[1646864121383,0.950228,2716.4,2716.3,3.80151252]
[1646864121789,1.250228,2716.4,2716.3,3.80151252]
[1646864122983,1.250228,2716.4,2716.3,5.33123469]
[1646864123288,2.89272577,2716.7,2716.3,5.33117611]
[1646864123289,1.84206,2716.7,2716.3,5.33117611]
[1646864123484,1.84206,2716.7,2716.4,1.52966359]
[1646864124126,1.84206,2716.7,2716.3,3.80151252]
[1646864124330,0.029168,2716.6,2716.3,3.80151252]
[1646864124526,0.029168,2716.6,2716.4,0.00358727]
[1646864124931,0.92102,2716.5,2716.4,0.00358727]
[1646864125329,0.950188,2716.5,2716.4,1.90434353]
[1646864125529,0.950188,2716.5,2716.4,1.90075626]
[1646864128681,0.92102,2716.5,2716.4,1.90075626]
[1646864129083,0.92102,2716.5,2716.4,3.43043903]
[1646864130085,0.92102,2716.5,2716.4,6.19901614]
[1646864133830,0.05041313,2717.0,2716.4,6.19901614]
[1646864133831,3.07676604,2717.2,2716.5,1.63155171]
[1646864134032,1.84177,2717.1,2716.6,5.02968277]
[1646864134230,0.56243443,2717.3,2716.7,1.52951066]
[1646864134429,0.56243443,2717.3,2716.8,0.08225367]
[1646864134634,0.56243443,2717.3,2717.0,1.90075626]
[1646864135383,0.56243443,2717.3,2717.0,1.90411438]
[1646864135384,0.92078,2717.2,2717.0,1.90411438]
[1646864136382,0.92078,2717.2,2717.0,1.90075626]
[1646864136583,0.92078,2717.2,2717.0,1.9041144]
[1646864137485,0.92078,2717.2,2717.0,1.90075626]
[1646864137682,0.92078,2717.2,2717.0,1.904122]
[1646864138684,0.92078,2717.2,2717.0,1.90075626]
[1646864138884,0.92078,2717.2,2717.1,3.5]
[1646864139136,1.0,2717.6,2717.1,4.69312444]
[1646864139137,1.92066,2717.6,2717.1,4.69312444]
[1646864139331,1.92066,2717.6,2717.2,0.07192415]
[1646864139332,1.0,2717.6,2717.2,0.07192415]
[1646864139837,1.0,2717.6,2717.4,1.90075626]
[1646864140531,1.0,2717.6,2717.5,1.98525789]
[1646864141432,0.029168,2717.6,2717.5,1.98525789]
[1646864141832,0.92053,2717.8,2717.5,1.98525789]
[1646864142033,0.029168,2717.6,2717.5,1.98525789]
[1646864142233,0.92053,2717.8,2717.5,1.98525789]
[1646864142435,0.92053,2717.8,2717.6,0.06928282]
[1646864142436,0.029168,2717.8,2717.6,0.06928282]
[1646864142634,0.92045,2718.1,2717.6,0.06928282]
[1646864142878,0.949618,2718.1,2717.6,0.06928282]
[1646864143078,0.029168,2718.0,2717.6,0.06928282]
[1646864143678,0.92045,2718.1,2717.6,0.06928282]
[1646864143877,0.029168,2718.0,2717.7,0.0033808]
[1646864144583,0.92045,2718.1,2717.7,0.0033808]
[1646864144787,0.029168,2717.8,2717.5,1.90075626]
[1646864144985,1.84129,2717.8,2717.7,0.00338021]
[1646864145382,1.870458,2717.8,2717.7,1.90413647]
[1646864145984,1.870458,2717.8,2717.7,3.80151252]
[1646864149839,1.870458,2717.8,2717.7,2.88092252]
[1646864150291,2.170458,2717.8,2717.7,2.88092252]
[1646864150474,2.170458,2717.8,2717.7,1.90075626]
[1646864150675,2.170458,2717.8,2717.7,2.88092252]
[1646864160782,1.84164,2717.5,2716.6,1.3385]
[1646864160984,1.84164,2717.5,2716.6,0.1839]
[1646864160985,0.029168,2716.8,2716.6,0.1839]
[1646864161182,0.92082,2717.5,2716.4,0.1839]
[1646864161183,0.029168,2716.7,2716.4,0.1839]
[1646864161381,0.029168,2716.6,2716.4,0.1839]
[1646864161830,0.029168,2716.7,2716.4,0.1839]
[1646864162030,0.950178,2716.8,2716.2,0.1839]
[1646864162229,0.029168,2716.7,2716.2,0.1839]
[1646864162429,0.329168,2716.7,2716.2,0.1839]
[1646864162629,0.3,2716.7,2716.2,0.1839]
[1646864162828,0.029168,2716.6,2716.2,0.1839]
[1646864163030,0.029168,2716.6,2716.5,1.63537238]
[1646864163430,0.950178,2716.6,2716.5,1.63537238]
[1646864163830,1.250178,2716.6,2716.5,1.63155171]
[1646864164730,1.22101,2716.6,2716.5,1.63155171]
[1646864165886,0.92101,2716.6,2716.5,1.63155171]
[1646864168780,1.22101,2716.6,2716.5,1.63155171]
[1646864170635,0.3,2716.6,2716.5,1.63155171]
[1646864170835,0.92101,2716.8,2716.5,1.63155171]
[1646864170836,0.3,2716.7,2716.5,1.63155171]
[1646864172636,0.3,2716.7,2716.5,1.63508951]
[1646864173478,0.3,2716.7,2716.5,1.63155171]
[1646864173885,0.3,2716.7,2716.5,1.63508951]
[1646864174490,1.0,2716.9,2716.5,1.63508951]
[1646864174491,1.3,2716.9,2716.5,1.63508951]
[1646864174687,0.3,2716.9,2716.5,1.63155171]
[1646864175092,0.3,2717.0,2716.6,3.93937796]
[1646864175288,0.3,2717.1,2716.6,5.15727384]
[1646864175489,3.44163,2717.3,2716.7,0.06826831]
[1646864175687,3.14163,2717.3,2716.7,0.06826831]
[1646864175888,2.14163,2717.3,2716.7,0.06826831]
[1646864176087,1.3,2717.3,2716.7,0.06826831]
[1646864176292,0.3,2717.3,2716.9,0.00358101]
[1646864176528,2.52073,2717.4,2716.9,0.00358101]
[1646864176727,2.22073,2717.4,2716.9,0.00358101]
[1646864177129,1.22073,2717.4,2716.7,0.06826831]
[1646864177332,1.249898,2717.4,2717.0,0.00358081]
[1646864177730,0.029168,2717.3,2717.0,0.00358081]
[1646864178231,0.029168,2717.3,2716.7,0.06826831]
[1646864178631,0.029168,2717.3,2717.0,0.00357496]
[1646864179437,1.249898,2717.4,2716.7,0.06826831]
[1646864179636,1.22073,2717.4,2716.7,0.06826831]
[1646864179836,1.249898,2717.4,2717.0,0.00357496]
[1646864180036,0.029168,2717.3,2717.0,0.00357496]
[1646864180293,0.029168,2717.2,2717.0,0.00357496]
[1646864180481,0.029168,2717.3,2717.0,0.00357496]
[1646864180680,0.029168,2717.3,2716.7,0.06826831]
[1646864180881,1.249898,2717.4,2716.7,0.06826831]
[1646864181082,1.249898,2717.4,2717.0,0.00357503]
[1646864181283,0.029168,2717.3,2717.0,0.00357503]
[1646864181980,0.029168,2717.3,2716.7,0.06826831]
[1646864182183,0.029168,2717.3,2717.0,0.00357582]
[1646864182384,0.029168,2717.1,2717.0,0.00357582]
[1646864182583,0.949968,2717.1,2717.0,0.00357582]
[1646864182785,1.249968,2717.1,2717.0,0.00357582]
[1646864183283,1.249968,2717.1,2716.7,0.06826831]
[1646864183486,0.029168,2716.9,2716.7,0.06826831]
[1646864183683,0.029168,2717.0,2716.7,0.06737766]
[1646864184146,1.2208,2717.1,2716.7,0.06737766]
[1646864184642,1.2208,2717.1,2716.7,0.07095388]
[1646864184840,0.029168,2717.0,2716.7,0.07095388]
[1646864185243,1.249968,2717.1,2716.7,0.07095388]
[1646864185441,1.249968,2717.1,2716.7,0.06737766]
[1646864185843,0.029168,2717.0,2716.7,0.0709627]
[1646864186044,1.2208,2717.1,2716.7,0.0709627]
[1646864186746,1.2208,2717.1,2716.8,1.52943758]
[1646864186943,0.9208,2717.1,2716.8,1.53302255]
[1646864187146,0.92069,2717.4,2717.0,1.00426187]
[1646864187988,0.92069,2717.4,2716.7,0.07916639]
[1646864188184,1.22069,2717.4,2717.1,0.00107537]
[1646864189188,1.249858,2717.4,2717.0,1.52921556]
[1646864189492,0.029168,2717.3,2717.1,0.00357426]
[1646864189892,1.22069,2717.4,2717.1,0.00357426]
[1646864190291,1.22069,2717.4,2716.9,0.08936002]
[1646864190489,1.22069,2717.4,2716.7,0.08274432]
[1646864190490,0.92078,2717.1,2716.7,0.08274432]
[1646864190691,0.92078,2717.1,2716.8,1.52933765]
[1646864190892,1.22078,2717.1,2716.9,0.07060087]
[1646864191091,1.22078,2717.1,2716.6,0.08928002]
[1646864191293,1.22078,2717.1,2716.8,0.07658305]
[1646864191529,1.22078,2717.1,2716.9,1.52933142]
[1646864192132,1.249948,2717.1,2716.9,1.52933142]
[1646864192329,0.029168,2717.0,2716.7,1.17162254]
[1646864192529,0.029168,2717.0,2716.8,1.52934517]
[1646864192728,1.22078,2717.1,2716.8,1.52934517]
[1646864193128,0.029168,2717.0,2716.8,1.52934517]
[1646864193327,1.22078,2717.1,2716.8,1.52934517]
[1646864193530,0.029168,2717.0,2716.8,1.52934517]
[1646864193727,1.22078,2717.1,2716.8,1.52934517]
[1646864194131,1.22078,2717.1,2716.8,1.5330084]
[1646864194431,1.249948,2717.1,2716.8,1.5330084]
[1646864194634,0.029168,2716.9,2716.8,1.5330084]
[1646864194832,0.029168,2717.0,2716.9,0.08750399]
[1646864195032,0.029168,2717.0,2716.9,1.61684916]
[1646864195480,1.249948,2717.1,2716.9,1.61684916]
[1646864195680,1.249948,2717.1,2716.9,0.08750399]
[1646864195882,1.22078,2717.1,2716.9,0.08750399]
[1646864196082,0.029168,2717.0,2716.9,0.08750399]
[1646864196282,0.029168,2717.0,2716.9,1.61688867]
[1646864196483,1.22078,2717.1,2716.9,1.61688867]
[1646864196682,1.22078,2717.1,2716.9,1.62044842]
[1646864196881,1.22078,2717.1,2716.9,0.09106374]
[1646864197083,0.029168,2717.0,2716.9,0.09106374]
[1646864197485,1.22078,2717.1,2716.9,0.08750399]
[1646864198288,0.029168,2717.0,2716.9,0.08750399]
[1646864198787,1.22078,2717.1,2716.9,1.56686788]
[1646864199027,0.029168,2717.0,2716.9,0.03750399]
[1646864199231,1.22078,2717.1,2716.9,0.03750399]
[1646864199430,1.22078,2717.1,2716.9,1.56686749]
[1646864199632,1.22078,2717.1,2716.9,0.03750399]
[1646864200036,1.249948,2717.1,2716.9,0.03750399]
[1646864200234,1.22078,2717.1,2716.9,0.04108192]
[1646864200434,1.249948,2717.1,2716.9,0.04108192]
[1646864201034,0.029168,2717.0,2716.9,0.04108192]
[1646864201234,0.029168,2717.0,2716.9,0.03750399]
[1646864201435,0.029168,2717.0,2716.9,0.04108192]
[1646864202424,0.029168,2717.0,2716.9,0.03750399]
[1646864214419,1.249948,2717.1,2716.9,0.03750399]
[1646864214918,0.029168,2717.0,2716.9,0.03750399]
[1646864215324,1.22078,2717.1,2716.9,0.03750399]
[1646864217121,1.249948,2717.1,2716.9,0.0410796]
[1646864217321,1.22078,2717.1,2716.9,0.0410796]
[1646864217523,1.249948,2717.1,2716.9,0.0410796]
[1646864218067,1.249948,2717.1,2716.9,0.03750399]
[1646864218264,1.249948,2717.1,2716.9,0.0410796]
[1646864218664,1.22078,2717.1,2716.9,0.0410796]
[1646864218864,1.249948,2717.1,2716.9,0.0410796]
[1646864219068,1.249948,2717.1,2716.9,0.03750399]
[1646864219267,1.22078,2717.1,2716.9,0.03750399]
[1646864219468,1.22078,2717.1,2716.9,0.03958205]
[1646864219667,0.029168,2717.0,2716.9,0.03958205]
[1646864220270,0.029168,2717.0,2716.9,0.03600644]
[1646864223720,0.92078,2717.1,2716.9,1.565425]
[1646864223918,0.949948,2717.1,2716.9,0.03600644]
[1646864224123,0.029168,2717.0,2716.9,0.03600644]
[1646864224525,0.029168,2717.0,2716.9,1.56540528]
[1646864225025,0.029168,2717.0,2716.9,0.03600644]
[1646864243179,0.029168,2717.0,2716.9,1.5654228]
[1646864243579,1.22078,2717.1,2716.9,1.5654228]
[1646864243780,0.029168,2717.0,2716.9,0.03512447]
[1646864244622,0.029168,2717.0,2716.9,1.56453419]
[1646864249974,1.249948,2717.1,2716.9,1.56453419]
[1646864250174,1.249948,2717.1,2717.0,1.52940972]
[1646864250373,1.249948,2717.1,2716.9,0.03512447]
[1646864250573,0.029168,2717.0,2716.9,0.03512447]
[1646864250774,0.029168,2717.0,2716.9,1.56452149]
[1646864256174,1.22078,2717.1,2716.9,1.56452149]
[1646864256375,1.22078,2717.1,2716.9,0.03512447]
[1646864256575,0.029168,2717.0,2716.9,0.03512447]
[1646864257177,0.029168,2717.0,2716.9,1.56456402]
[1646864257879,0.029168,2717.0,2716.9,0.03512447]
[1646864268327,0.029168,2717.0,2716.9,0.03376947]
[1646864274935,0.02823917,2717.0,2716.9,0.03376947]
[1646864279485,0.07480328,2717.0,2716.9,0.03376947]
[1646864280887,3.57480328,2717.0,2716.9,0.03376947]
[1646864281287,4.57480328,2717.0,2716.9,0.03376947]
[1646864282527,1.07480328,2717.0,2716.9,0.03376947]
[1646864282729,0.07480328,2717.0,2716.9,0.03376947]
[1646864285778,3.57480328,2717.0,2716.9,0.03376947]
[1646864285978,4.57480328,2717.0,2716.9,0.03376947]
[1646864286879,1.07480328,2717.0,2716.9,0.03376947]
[1646864287279,3.57480328,2717.0,2716.9,0.03376947]
[1646864287781,4.57480328,2717.0,2716.9,0.03376947]
[1646864288380,1.07480328,2717.0,2716.9,0.03376947]
[1646864288781,0.07480328,2717.0,2716.9,0.03376947]
[1646864292033,0.02823917,2717.0,2716.9,0.03376947]
[1646864292436,3.26050826,2717.1,2716.9,0.03376947]
[1646864292636,0.92078,2717.1,2716.9,0.03376947]
[1646864293782,0.92078,2717.1,2717.0,1.52929602]
[1646864294387,0.92078,2717.1,2717.0,2.74992264]
[1646864295490,0.92078,2717.1,2716.9,0.03714473]
[1646864295893,0.92078,2717.1,2716.9,0.03376947]
[1646864296089,0.87078,2717.1,2716.9,0.03376947]
[1646864296289,0.87078,2717.1,2716.9,0.03714475]
[1646864297128,0.87078,2717.1,2716.9,0.03376947]
[1646864297329,0.87078,2717.1,2716.9,0.03714474]
[1646864298333,0.87078,2717.1,2716.9,0.03376947]
[1646864298534,0.87078,2717.1,2716.9,0.03714474]
[1646864298730,0.87078,2717.1,2716.9,0.00337527]
[1646864299631,0.87078,2717.1,2716.8,1.52939858]
[1646864299931,0.87078,2717.1,2716.9,0.00337527]
[1646864300782,0.87078,2717.1,2716.8,1.52939858]
[1646864300982,0.87078,2717.1,2716.9,0.00337528]
[1646864301286,0.87078,2717.1,2716.7,0.07522571]
[1646864301681,0.899948,2717.1,2716.7,0.07522571]
[1646864302084,0.029168,2717.0,2716.7,0.07522571]
[1646864302483,0.92087,2716.9,2716.5,0.07462939]
[1646864302681,0.92087,2716.8,2716.4,0.017296]
[1646864303583,0.92087,2716.8,2716.5,0.07928965]
[1646864304631,0.92087,2716.8,2716.5,0.08286624]
[1646864305632,0.92087,2716.8,2716.5,0.07928965]
[1646864305833,0.92087,2716.8,2716.5,0.08286624]
[1646864306635,0.950038,2716.8,2716.5,0.08286624]
[1646864306834,0.950038,2716.8,2716.5,0.07928965]
[1646864307035,0.950038,2716.8,2716.5,0.08285944]
[1646864307336,0.92087,2716.8,2716.5,0.08285944]
[1646864307534,0.92087,2716.8,2716.5,0.00356979]
[1646864307977,0.029168,2716.7,2716.2,0.1839]
[1646864308178,0.92087,2716.8,2716.5,0.00356979]
[1646864308378,0.029168,2716.7,2716.5,0.00356979]
[1646864309183,0.029168,2716.7,2716.3,0.06890176]
[1646864309384,0.92087,2716.8,2716.5,0.00346272]
[1646864309584,0.029168,2716.7,2716.5,0.00346272]
[1646864310183,0.92087,2716.8,2716.5,0.00346272]
[1646864310384,0.950038,2716.8,2716.3,0.06890176]
[1646864310584,0.029168,2716.7,2716.5,0.00346314]
[1646864311083,0.92087,2716.8,2716.5,0.00346314]
[1646864311286,0.950038,2716.8,2716.5,0.00346314]
[1646864311537,0.950038,2716.8,2716.3,0.06890176]
[1646864311731,0.950038,2716.8,2716.5,0.00346312]
[1646864312731,0.950038,2716.8,2716.4,0.07691421]
[1646864312931,0.950038,2716.8,2716.5,0.00336501]
[1646864313733,0.029168,2716.7,2716.5,0.00336501]
[1646864313932,0.029168,2716.7,2716.4,0.07691421]
[1646864314338,0.029168,2716.7,2716.5,0.00336858]
[1646864314735,0.950038,2716.8,2716.5,0.00336858]
[1646864315135,0.950038,2716.8,2716.4,0.07691421]
[1646864315378,0.950038,2716.8,2716.5,0.00336858]
[1646864315580,0.92087,2716.8,2716.5,0.00336858]
[1646864316379,0.950038,2716.9,2716.4,0.07691421]
[1646864316380,0.92087,2716.9,2716.4,0.07691421]
[1646864316580,0.950038,2716.9,2716.5,0.00337307]
[1646864316978,0.92087,2716.9,2716.5,0.00337307]
[1646864317581,0.92087,2716.9,2716.4,0.07691421]
[1646864317780,0.92087,2716.9,2716.6,0.00337611]
[1646864318781,0.92087,2716.9,2716.4,0.07691421]
[1646864319033,0.92087,2716.9,2716.6,0.00337609]
[1646864320040,0.92087,2716.9,2716.4,0.07691421]
[1646864320239,0.92087,2716.9,2716.6,0.00337568]
[1646864321241,0.92087,2716.9,2716.5,1.52941507]
[1646864321441,0.92087,2716.9,2716.6,0.00337532]
[1646864321642,0.950038,2716.9,2716.6,0.00337532]
[1646864322442,0.950038,2716.9,2716.5,1.52941507]
[1646864322641,0.950038,2716.9,2716.6,0.00337532]
[1646864323477,0.950038,2716.9,2716.5,1.52941507]
[1646864323679,0.92087,2716.9,2716.5,1.52941507]
[1646864323881,0.029168,2716.8,2716.6,0.00337536]
[1646864324282,0.950038,2716.9,2716.6,0.00337536]
[1646864324691,0.950038,2716.9,2716.5,1.52941507]
[1646864325083,0.950038,2716.9,2716.6,0.00253745]
[1646864325486,1.870888,2716.9,2716.6,0.00253745]
[1646864325884,1.84172,2716.9,2716.5,1.52941507]
[1646864326085,1.870888,2716.9,2716.5,1.52941507]
[1646864327334,1.870888,2716.9,2716.6,0.00107753]
[1646864327531,1.84172,2716.9,2716.6,0.00107753]
[1646864327732,1.870888,2716.9,2716.6,0.00107753]
[1646864328333,1.870888,2716.9,2716.5,1.52941507]
[1646864328532,1.870888,2716.9,2716.6,0.00358961]
[1646864329539,1.84172,2716.9,2716.5,1.52941507]
[1646864329740,0.029168,2716.8,2716.5,1.52941507]
[1646864329945,0.029168,2716.8,2716.6,0.00358961]
[1646864330143,1.84172,2716.9,2716.6,0.00358961]
[1646864330783,0.029168,2716.8,2716.5,1.52941507]
[1646864330984,0.029168,2716.8,2716.6,0.00356342]
[1646864331988,0.029168,2716.8,2716.5,1.52941507]
[1646864332185,0.029168,2716.8,2716.6,0.00356348]
[1646864332588,1.870888,2716.9,2716.6,0.00356348]
[1646864332985,1.84172,2716.9,2716.6,0.00356348]
[1646864333187,1.84172,2716.9,2716.5,1.52941507]
[1646864333385,1.84172,2716.9,2716.6,0.00356342]
[1646864334334,1.84172,2716.9,2716.5,1.52935526]
[1646864334533,0.029168,2716.8,2716.6,1.5329225]
[1646864334736,0.029168,2716.8,2716.7,1.52935526]
[1646864334938,1.870888,2716.9,2716.6,0.00356724]
[1646864335635,1.870888,2716.9,2716.3,1.52935526]
[1646864335838,0.029168,2716.8,2716.6,0.00356724]
[1646864336837,0.029168,2716.8,2716.3,1.52935526]
[1646864337036,0.029168,2716.8,2716.6,0.00356731]
[1646864337238,1.84172,2716.9,2716.6,0.00356731]
[1646864337537,0.029168,2716.8,2716.6,0.00356731]
[1646864337795,1.870888,2716.9,2716.6,0.00356731]
[1646864337982,1.870888,2716.9,2716.3,1.52935526]
[1646864338182,1.84172,2716.9,2716.6,0.00356676]
[1646864338583,1.870888,2716.9,2716.6,0.00356676]
[1646864338798,1.84172,2716.9,2716.6,0.00356676]
[1646864338982,1.870888,2716.9,2716.6,0.00356676]
[1646864339189,1.84172,2716.9,2716.3,1.52935526]
[1646864339388,1.84172,2716.9,2716.6,0.00356669]
[1646864339790,1.870888,2716.9,2716.6,0.00356669]
[1646864339987,1.84172,2716.9,2716.6,0.00356669]
[1646864340290,1.84172,2716.9,2716.3,1.52935526]
[1646864340487,1.870888,2716.9,2716.3,1.52935526]
[1646864340689,0.029168,2716.8,2716.6,0.00356669]
[1646864340888,1.84172,2716.9,2716.6,0.00356669]
[1646864341087,1.870888,2716.9,2716.6,0.00356669]
[1646864341532,0.029168,2716.8,2716.3,1.52935526]
[1646864341830,1.84172,2716.9,2716.6,0.00356677]
[1646864342029,1.870888,2716.9,2716.6,0.00356677]
[1646864342230,0.029168,2716.8,2716.6,0.00356677]
[1646864342835,0.029168,2716.8,2716.3,1.52935526]
[1646864343033,0.029168,2716.7,2716.6,0.00356684]
[1646864343233,0.029168,2716.8,2716.6,0.00356684]
[1646864343835,1.870888,2716.9,2716.6,0.00356684]
[1646864344036,1.870888,2716.9,2716.5,1.52935526]
[1646864344240,2.4007725,2716.9,2716.6,0.00356684]
[1646864345288,2.4007725,2716.9,2716.5,1.52935526]
[1646864345482,2.4007725,2716.9,2716.6,0.00356676]
[1646864346279,2.4007725,2716.9,2716.5,1.52935526]
[1646864346679,2.4007725,2716.9,2716.6,0.00356676]
[1646864347680,2.4007725,2716.9,2716.5,1.52935526]
[1646864347881,2.4007725,2716.9,2716.6,0.00356676]
[1646864348085,2.4299405,2716.9,2716.6,0.00261888]
[1646864348281,2.4007725,2716.9,2716.6,0.00261888]
[1646864348881,2.4007725,2716.9,2716.5,1.52935526]
[1646864349136,2.4299405,2716.9,2716.5,1.52935526]
[1646864349336,2.4299405,2716.9,2716.6,1.52935526]
[1646864349636,2.4299405,2716.9,2716.7,1.52935526]
[1646864349838,2.4299405,2716.9,2716.8,1.52935526]
[1646864350038,2.4007725,2716.9,2716.2,2.20506123]
[1646864350237,2.4007725,2716.9,2716.3,1.52935526]
[1646864350436,0.029168,2716.8,2716.4,1.52935526]
[1646864350642,2.4007725,2716.9,2716.8,0.05833599]
[1646864350837,2.4007725,2716.9,2716.8,1.58769125]
[1646864351238,1.84172,2716.9,2716.8,1.58769125]
[1646864360144,1.84019939,2716.9,2716.8,1.58769125]
[1646864362489,1.84019939,2716.9,2716.8,0.05833599]
[1646864362689,2.14019939,2716.9,2716.8,0.05833599]
[1646864366339,2.14019939,2716.9,2716.8,1.58786685]
[1646864366538,2.14019939,2716.9,2716.8,0.05833599]
[1646864366946,2.14019939,2716.9,2716.8,1.58786685]
[1646864372333,1.84019939,2716.9,2716.8,1.58786685]
[1646864374740,0.92085,2716.9,2716.8,1.58786685]
[1646864376986,2.1968,2717.1,2716.8,1.58786685]
[1646864377193,2.22081,2717.2,2716.9,1.52953086]
[1646864377390,0.04922252,2717.1,2716.9,1.52953086]
[1646864377992,0.04922252,2717.1,2716.9,2.43579534]
[1646864378194,1.38053264,2717.6,2717.0,1.52953086]
[1646864378392,1.18856942,2717.6,2717.1,0.14766756]
[1646864378591,1.134,2717.6,2717.2,1.52953086]
[1646864378795,2.429,2717.7,2717.2,1.52953086]
[1646864379033,0.96519554,2717.9,2717.2,1.52953086]
[1646864379238,1.26519554,2717.9,2717.2,1.52953086]
[1646864380341,0.04461554,2717.9,2717.3,3.5]
[1646864380541,0.04461554,2717.9,2717.3,3.8]
[1646864380742,0.06537156,2718.1,2717.5,0.029168]
[1646864380942,0.06537156,2718.1,2717.6,1.52953086]
[1646864381141,0.01442407,2718.1,2717.7,3.5]
[1646864381340,1.243,2718.3,2717.8,2.61872231]
[1646864381541,1.243,2718.3,2717.9,1.52875888]
[1646864381542,0.00360626,2718.1,2717.9,1.52875888]
[1646864381947,0.00360626,2718.1,2717.8,1.08919145]
[1646864382143,0.00360626,2718.1,2717.9,1.5287307]
[1646864382342,0.01442368,2718.3,2717.8,1.08919145]
[1646864382542,0.04543873,2718.6,2717.9,1.52871164]
[1646864382791,0.00360639,2718.1,2717.9,5.02871164]
[1646864382981,0.00360639,2718.1,2717.9,3.5]
[1646864383582,0.04543873,2718.6,2717.9,3.5]
[1646864384088,0.00360638,2718.1,2717.9,3.5]
[1646864384886,0.04543873,2718.6,2717.9,3.5]
[1646864385087,0.00360638,2718.1,2717.9,3.5]
[1646864385786,0.00360638,2718.1,2717.8,1.08919145]
[1646864385987,0.04543873,2718.6,2717.9,3.5]
[1646864386189,0.00360637,2718.1,2717.9,3.529168]
[1646864387234,0.04543873,2718.6,2717.9,3.529168]
[1646864387432,0.00360637,2718.1,2717.9,3.529168]
[1646864387639,0.00360637,2718.1,2717.9,0.029168]
[1646864388433,0.04980076,2718.5,2717.9,3.529168]
[1646864388732,0.00334932,2718.1,2717.9,0.029168]
[1646864389337,0.00334932,2718.1,2717.9,3.529168]
[1646864389541,0.00334932,2718.1,2717.9,0.029168]
[1646864389737,0.04980076,2718.5,2717.9,0.02826674]
[1646864389940,0.00334932,2718.1,2717.9,0.02826674]
[1646864390792,0.97016076,2718.5,2717.9,0.02826674]
[1646864391184,0.00334932,2718.1,2717.9,0.02826674]
[1646864391982,0.97016076,2718.5,2717.9,0.02826674]
[1646864392188,0.00334932,2718.1,2717.9,0.02826674]
[1646864393286,0.97016076,2718.5,2717.9,0.02826674]
[1646864393486,0.00337377,2718.1,2717.9,0.02826674]
[1646864394539,0.92038,2718.4,2717.9,0.02826674]
[1646864394743,0.00337377,2718.1,2717.9,0.02826674]
[1646864395337,0.00337377,2718.1,2717.9,3.52826674]
[1646864395538,0.00337377,2718.1,2717.9,0.02826674]
[1646864395838,0.92038,2718.4,2717.9,0.02826674]
[1646864396038,0.00337377,2718.1,2717.9,0.02826674]
[1646864396738,0.92038,2718.4,2717.9,0.02826674]
[1646864396939,0.92038,2718.4,2717.9,0.09687936]
[1646864397140,0.0033713,2718.1,2717.9,0.09687936]
[1646864397639,0.0033713,2718.1,2717.9,3.59687936]
[1646864397883,0.0033713,2718.1,2717.9,3.89606674]
[1646864398085,0.92028,2718.7,2718.0,3.58158332]
[1646864398288,0.01348318,2718.5,2718.1,0.07476615]
[1646864399291,0.92028,2718.7,2718.1,0.07476615]
[1646864399490,0.00337118,2718.4,2718.2,0.029168]
[1646864399893,0.01348271,2718.8,2718.6,0.00674236]
[1646864400488,1.18830003,2719.2,2718.6,0.00674236]
[1646864400489,0.04270003,2719.2,2718.6,0.00674236]
[1646864401388,0.04270003,2719.2,2718.7,0.029168]
[1646864401636,0.05444735,2719.4,2718.7,0.029168]
[1646864401836,0.04952896,2719.6,2718.7,0.029168]
[1646864403538,0.04952896,2719.6,2719.0,0.88561537]
[1646864403738,0.91999,2719.5,2719.0,0.88561537]
[1646864403938,0.05315483,2719.4,2719.0,0.88561537]
[1646864404141,0.05315483,2719.4,2718.7,0.029168]
[1646864404342,0.05696778,2719.4,2718.7,0.029168]
[1646864405384,0.05315483,2719.4,2718.7,0.029168]
[1646864405584,0.00381307,2719.2,2718.8,1.11323079]
[1646864405882,0.8769579,2719.5,2718.9,0.08551245]
[1646864409136,0.00380997,2719.3,2718.9,0.08551245]
[1646864410139,0.8769579,2719.5,2718.9,0.08551245]
[1646864410335,0.00380987,2719.3,2718.9,0.08551245]
[1646864411337,0.92293147,2719.5,2718.8,1.11323079]
[1646864411637,0.00380987,2719.3,2718.9,0.1179601]
[1646864412436,0.8769579,2719.5,2718.9,0.1179601]
[1646864412637,0.00380987,2719.3,2718.9,0.1179601]
[1646864413488,0.00380987,2719.3,2718.9,0.029168]
[1646864413691,0.8769579,2719.5,2718.9,0.029168]
[1646864413889,0.00368415,2719.3,2718.9,0.029168]
[1646864414891,0.8769579,2719.5,2718.9,0.029168]
[1646864415088,0.00368415,2719.3,2718.9,0.029168]
[1646864415890,0.00368415,2719.3,2718.9,0.01987413]
[1646864416094,0.8769579,2719.5,2718.9,0.01987413]
[1646864416293,0.00368415,2719.3,2718.9,0.01987413]
[1646864416935,0.92008,2719.2,2718.8,1.11323079]
[1646864418638,0.92008,2719.2,2718.6,0.07951452]
[1646864420690,0.92008,2719.2,2718.7,1.19249486]
[1646864421094,0.00360243,2719.3,2718.7,1.19249486]
[1646864422091,0.92,2719.4,2719.0,0.029168]
[1646864422292,0.00360253,2719.3,2718.7,1.19249486]
[1646864423093,0.00360253,2719.3,2718.7,1.22166286]
[1646864423295,0.05797146,2719.5,2718.7,1.22166286]
[1646864423296,0.04356245,2719.5,2718.7,1.22166286]
[1646864423492,0.00360253,2719.3,2718.7,1.22166286]
[1646864423693,0.00360253,2719.3,2718.8,0.07433465]
[1646864424546,0.96354245,2719.5,2718.8,0.07433465]